[Event "30th Cracovia Festival-A 2019"]
[Site "Krakow"]
[Date "2020.01.03"]
[Round "8.16"]
[White "Bus, Konrad"]
[Black "Evchin, Maxim"]
[Result "1/2-1/2"]
[ECO "A46"]
[WhiteElo "2214"]
[BlackElo "2315"]
[Annotator "NA RC"]
[PlyCount "112"]
[EventDate "2019.12.27"]
[EventCountry "POL"]
[SourceTitle "playchess.com"]
[Source "ChessBase"]
[SourceQuality "1"]
[TimeControl "40/5400+30:1800+30"]

1. d4 {[%emt 0:00:00]} Nf6 {[%emt 0:07:12]} 2. Nf3 {[%emt 0:00:00]} d5 {[%emt 0:00:33]} 3. g3 {[%emt 0:00:28]} Bf5 {[%emt 0:01:02]} 4. c4 {[%emt 0:00:49]} c6 {[%emt 0:00:27]} 5. Nc3 {[%emt 0:00:37]} e6 {[%emt 0:00:08]} 6. Nh4 {[%emt 0:01:22]} Bg4 {[%emt 0:00:20]} 7. h3 {[%emt 0:02:17]} Bh5 {[%emt 0:00:07]} 8. Qb3 {[%emt 0:01:19]} Qb6 {[%emt 0:01:38]} 9. c5 {[%emt 0:05:34]} Qc7 {[%emt 0:01:37]} 10. Bf4 {[%emt 0:00:36]} Qc8 {[%emt 0:00:02]} 11. g4 {[%emt 0:02:34]} Bg6 {[%emt 0:00:06]} 12. Bg2 {[%emt 0:03:31]} Be7 {[%emt 0:02:06]} 13. Nxg6 {[%emt 0:04:50]} hxg6 {[%emt 0:00:02]} 14. O-O {[%emt 0:02:52]} Nbd7 {[%emt 0:00:35]} 15. Qc2 {[%emt 0:04:30]} O-O {[%emt 0:00:50]} 16. b4 {[%emt 0:03:42]} Re8 {[%emt 0:00:20]} 17. Bg3 {[%emt 0:05:05]} g5 {[%emt 0:00:57]} 18. Qd2 {[%emt 0:03:12]} Bd8 {[%emt 0:06:49]} 19. Qxg5 {[%emt 0:05:52]} Ne4 {[%emt 0:00:56]} 20. Qe3 {[%emt 0:01:08]} Nxg3 {[%emt 0:00:16]} 21. Qxg3 {[%emt 0:02:16]} e5 {[%emt 0:00:08]} 22. dxe5 {[%emt 0:06:16]} Nxe5 {[%emt 0:01:24]} 23. e4 {[%emt 0:04:04]} d4 {[%emt 0:01:21]} 24. Ne2 {[%emt 0:01:50]} d3 {[%emt 0:00:30]} 25. Nd4 {[%emt 0:02:22]} Qd7 {[%emt 0:01:17]} 26. Nf5 {[%emt 0:01:34]} Bc7 {[%emt 0:00:09]} 27. f4 {[%emt 0:01:58]} Ng6 {[%emt 0:03:26]} 28. e5 {[%emt 0:06:55]} Nxe5 {[%emt 0:01:43]} 29. Rad1 {[%emt 0:00:12]} Ng6 {[%emt 0:02:34]} 30. Rxd3 {[%emt 0:02:07]} Qe6 {[%emt 0:00:09]} 31. Nd6 {[%emt 0:01:14]} Bxd6 {[%emt 0:00:14]} 32. cxd6 {[%emt 0:01:34]} Qc4 {[%emt 0:01:04]} 33. d7 {[%emt 0:07:15]} Red8 {[%emt 0:00:25]} 34. a3 {[%emt 0:01:41]} a5 {[%emt 0:01:17]} 35. bxa5 {[%emt 0:01:01]} Nf8 {[%emt 0:00:50]} 36. Rfd1 {[%emt 0:01:02]} Ne6 {[%emt 0:04:06]} 37. Kh2 {[%emt 0:04:59]} Qxf4 {[%emt 0:00:21]} 38. Qxf4 {[%emt 0:01:13]} Nxf4 {[%emt 0:00:02]} 39. Rb3 {[%emt 0:01:05]} Rxa5 {[%emt 0:00:34]} 40. Rxb7 {[%emt 0:00:00]} Rxa3 {[%emt 0:00:00]} 41. Rc7 {[%emt 0:13:03]} Kf8 {[%emt 0:01:40]} 42. Re1 {[%emt 0:06:22]} Ne6 {[%emt 0:00:41]} 43. Rc8 {[%emt 0:00:46]} Ke7 {[%emt 0:03:14]} 44. Bxc6 {[%emt 0:00:52]} g5 {[%emt 0:03:04]} 45. Re2 {[%emt 0:02:22]} Rd3 {[%emt 0:02:26]} 46. Ra2 {[%emt 0:01:50]} Rd6 {[%emt 0:02:09]} 47. Ra3 {[%emt 0:00:36]} Rd2+ {[%emt 0:02:05]} 48. Kg3 {[%emt 0:00:30]} Rb2 {[%emt 0:00:12]} 49. h4 {[%emt 0:01:17]} gxh4+ {[%emt 0:00:16]} 50. Kxh4 {[%emt 0:00:02]} Rb8 {[%emt 0:02:30]} 51. Rxb8 {[%emt 0:01:30]} Rxb8 {[%emt 0:00:02]} 52. Ra7 {[%emt 0:03:14]} Rh8+ {[%emt 0:01:47]} 53. Kg3 {[%emt 0:00:10]} Rd8 {[%emt 0:00:02]} 54. Ra5 {[%emt 0:00:39]} Kd6 {[%emt 0:00:57]} 55. Ba4 {[%emt 0:01:45]} Nc5 {[%emt 0:00:12]} 56. Kf4 {[%emt 0:00:22]} Nxa4 {[%emt 0:00:24]} 1/2-1/2

[Event "30th Cracovia Festival-A 2019"]
[Site "Krakow"]
[Date "2020.01.03"]
[Round "8.17"]
[White "Brozyna, Mateusz"]
[Black "Marszalek, Maciej"]
[Result "1-0"]
[ECO "C50"]
[WhiteElo "2188"]
[BlackElo "2314"]
[Annotator "NA RC"]
[PlyCount "83"]
[EventDate "2019.12.27"]
[EventCountry "POL"]
[SourceTitle "playchess.com"]
[Source "ChessBase"]
[SourceQuality "1"]
[TimeControl "40/5400+30:1800+30"]

1. e4 e5 2. Nf3 Nc6 3. Bc4 Bc5 4. d3 Nf6 5. Nbd2 a6 6. Bb3 d6 7. c3 O-O 8. h3 Ba7 9. Nh2 Nd7 10. Bc2 Nc5 11. b4 Ne6 12. O-O a5 13. b5 Ne7 14. Nc4 f5 15. Nf3 fxe4 16. dxe4 Bc5 17. Ng5 h6 18. Nxe6 Bxe6 19. Ne3 Kh8 20. Bb3 Bd7 21. a4 Qe8 22. Qd3 Qg6 23. Nd5 Nxd5 24. Bxd5 c6 25. bxc6 bxc6 26. Bb3 Rf6 27. Ba3 Bxa3 28. Rxa3 Raf8 29. Bd1 Rf4 30. Rb3 d5 31. Kh2 Qxe4 32. Qg3 R4f6 33. f3 Qf5 34. Re1 Re8 35. Rb2 e4 36. fxe4 dxe4 37. Bg4 Qc5 38. Bxd7 Rd8 39. Rb8 Rxb8 40. Qxb8+ Rf8 41. Qg3 Rd8 42. Be6 1-0

[Event "30th Cracovia Festival-A 2019"]
[Site "Krakow"]
[Date "2020.01.03"]
[Round "8.18"]
[White "Plichta, Kamil"]
[Black "Vojtek, Vladimir"]
[Result "1-0"]
[ECO "A08"]
[WhiteElo "2353"]
[BlackElo "2263"]
[Annotator "NA"]
[PlyCount "73"]
[EventDate "2019.12.27"]
[EventCountry "POL"]
[SourceTitle "playchess.com"]
[Source "ChessBase"]
[SourceQuality "1"]
[TimeControl "40/5400+30:1800+30"]

1. Nf3 d5 2. g3 Nf6 3. Bg2 e6 4. O-O Be7 5. d3 c5 6. Nbd2 O-O 7. e4 Nc6 8. Re1 Qc7 9. e5 Nd7 10. Qe2 b5 11. Nf1 a5 12. Bf4 Ba6 13. h4 b4 14. Ne3 Nb6 15. h5 h6 16. Ng4 Rfc8 17. Qd2 Qd8 18. Bh3 Nd4 19. Nxd4 cxd4 20. Bxh6 gxh6 21. Nxh6+ Kg7 22. Nxf7 Kxf7 23. Qh6 Bg5 24. Qh7+ Ke8 25. Bxe6 Qe7 26. Qg8+ Qf8 27. Qg6+ Ke7 28. Bxc8 Rxc8 29. Qxg5+ Kd7 30. e6+ Kc6 31. e7 Qf7 32. Qg6+ Qxg6 33. hxg6 Kd7 34. e8=Q+ Rxe8 35. Rxe8 Kxe8 36. Re1+ Kf8 37. Re6 1-0

[Event "30th Cracovia Festival-A 2019"]
[Site "Krakow"]
[Date "2020.01.03"]
[Round "8.19"]
[White "Antolak, Julia"]
[Black "Nurkiewicz, Maciej"]
[Result "1-0"]
[ECO "B96"]
[WhiteElo "2249"]
[BlackElo "2340"]
[Annotator "NA"]
[PlyCount "49"]
[EventDate "2019.12.27"]
[EventCountry "POL"]
[SourceTitle "playchess.com"]
[Source "ChessBase"]
[SourceQuality "1"]
[TimeControl "40/5400+30:1800+30"]

1. e4 {[%emt 0:00:00]} c5 {[%emt 0:00:00]} 2. Nf3 {[%emt 0:00:00]} d6 {[%emt 0:00:00]} 3. d4 {[%emt 0:00:00]} cxd4 {[%emt 0:00:00]} 4. Nxd4 {[%emt 0:00:00]} Nf6 {[%emt 0:00:00]} 5. Nc3 {[%emt 0:00:00]} a6 {[%emt 0:00:00]} 6. Bg5 {[%emt 0:00:03]} e6 {[%emt 0:10:18]} 7. f4 {[%emt 0:00:28]} h6 {[%emt 0:00:10]} 8. Bh4 {[%emt 0:00:32]} Qb6 {[%emt 0:00:18]} 9. a3 {[%emt 0:01:21]} Nc6 {[%emt 0:03:03]} 10. Bf2 {[%emt 0:02:13]} Qc7 {[%emt 0:00:12]} 11. Qf3 {[%emt 0:09:43]} Be7 {[%emt 0:07:14]} 12. O-O-O {[%emt 0:05:01]} Nxd4 {[%emt 0:04:08]} 13. Bxd4 {[%emt 0:04:26]} b5 {[%emt 0:15:18]} 14. e5 {[%emt 0:08:20]} Bb7 {[%emt 0:03:01]} 15. Qg3 {[%emt 0:01:04]} Nh5 {[%emt 0:09:39]} 16. Qg4 {[%emt 0:01:52]} Nxf4 {[%emt 0:00:30]} 17. exd6 {[%emt 0:08:15]} Bxd6 {[%emt 0:00:52]} 18. Bxb5+ {[%emt 0:02:25]} Bc6 {[%emt 0:05:23]} 19. Bxg7 {[%emt 0:14:00]} Rg8 {[%emt 0:01:27]} 20. Ne4 {[%emt 0:01:54]} O-O-O {[%emt 0:01:48]} 21. Bxc6 {[%emt 0:01:09]} Qxc6 {[%emt 0:00:50]} 22. Nxd6+ {[%emt 0:00:37]} Rxd6 {[%emt 0:00:09]} 23. Qxf4 {[%emt 0:00:18]} Rxd1+ {[%emt 0:00:25]} 24. Rxd1 {[%emt 0:00:06]} Rxg7 {[%emt 0:00:05]} 25. Rd3 {[%emt 0:06:36]} 1-0

[Event "30th Cracovia Festival-A 2019"]
[Site "Krakow"]
[Date "2020.01.03"]
[Round "8.20"]
[White "Bugalski, Michal"]
[Black "Morgunov, Marc"]
[Result "0-1"]
[ECO "A03"]
[WhiteElo "2241"]
[BlackElo "2311"]
[Annotator "NA"]
[PlyCount "52"]
[EventDate "2019.12.27"]
[EventCountry "POL"]
[SourceTitle "playchess.com"]
[Source "ChessBase"]
[SourceQuality "1"]
[TimeControl "40/5400+30:1800+30"]

1. f4 {[%emt 0:00:00]} d5 {[%emt 0:00:00]} 2. Nf3 {[%emt 0:00:00]} Nf6 {[%emt 0:00:21]} 3. g3 {[%emt 0:00:00]} g6 {[%emt 0:00:31]} 4. Bg2 {[%emt 0:00:00]} Bg7 {[%emt 0:00:10]} 5. O-O {[%emt 0:00:00]} O-O {[%emt 0:00:27]} 6. d3 {[%emt 0:00:09]} c5 {[%emt 0:05:03]} 7. Qe1 {[%emt 0:00:21]} Nc6 {[%emt 0:07:17]} 8. e4 {[%emt 0:00:10]} dxe4 {[%emt 0:02:02]} 9. dxe4 {[%emt 0:00:03]} e5 {[%emt 0:04:24]} 10. Nc3 {[%emt 0:09:27]} Nd4 {[%emt 0:13:06]} 11. Nxd4 {[%emt 0:14:55]} exd4 {[%emt 0:03:06]} 12. Na4 {[%emt 0:00:53]} Nd7 {[%emt 0:08:04]} 13. e5 {[%emt 0:10:24]} Rb8 {[%emt 0:06:44]} 14. b4 {[%emt 0:03:29]} b6 {[%emt 0:02:38]} 15. Rb1 {[%emt 0:11:37]} c4 {[%emt 0:10:55]} 16. b5 {[%emt 0:05:55]} Nc5 {[%emt 0:02:08]} 17. Qb4 {[%emt 0:00:51]} d3 {[%emt 0:03:15]} 18. cxd3 {[%emt 0:19:04]} Qd4+ {[%emt 0:01:55]} 19. Kh1 {[%emt 0:00:07]} Nxd3 {[%emt 0:00:09]} 20. Qd2 {[%emt 0:00:33]} Bf5 {[%emt 0:02:47]} 21. Bb2 {[%emt 0:01:03]} Nf2+ {[%emt 0:01:05]} 22. Qxf2 {[%emt 0:04:12]} Qxf2 {[%emt 0:00:08]} 23. Rxf2 {[%emt 0:00:05]} Bxb1 {[%emt 0:00:04]} 24. Ba3 {[%emt 0:00:30]} Rfd8 {[%emt 0:01:16]} 25. Bd6 {[%emt 0:00:29]} Rbc8 {[%emt 0:00:33]} 26. Nc3 {[%emt 0:00:20]} Rxd6 {[%emt 0:00:33]} 0-1

[Event "30th Cracovia Festival-A 2019"]
[Site "Krakow"]
[Date "2020.01.03"]
[Round "8.22"]
[White "Szustakowski, Antoni"]
[Black "Nikolaidis, Konstantinos"]
[Result "1-0"]
[ECO "A50"]
[WhiteElo "2299"]
[BlackElo "2200"]
[Annotator "NA"]
[PlyCount "53"]
[EventDate "2019.12.27"]
[EventCountry "POL"]
[SourceTitle "playchess.com"]
[Source "ChessBase"]
[SourceQuality "1"]
[TimeControl "40/5400+30:1800+30"]

1. d4 {[%emt 0:00:00]} Nf6 {[%emt 0:00:00]} 2. c4 {[%emt 0:00:00]} b6 {[%emt 0:00:51]} 3. Nc3 {[%emt 0:00:15]} Bb7 {[%emt 0:00:15]} 4. Qc2 {[%emt 0:01:02]} d5 {[%emt 0:00:31]} 5. cxd5 {[%emt 0:00:42]} Nxd5 {[%emt 0:00:17]} 6. e4 {[%emt 0:00:06]} Nxc3 {[%emt 0:00:27]} 7. bxc3 {[%emt 0:00:05]} e5 {[%emt 0:00:40]} 8. Nf3 {[%emt 0:07:08]} exd4 {[%emt 0:01:19]} 9. Bc4 {[%emt 0:00:05]} Nc6 {[%emt 0:00:38]} 10. O-O {[%emt 0:02:49]} d3 {[%emt 0:01:55]} 11. Bxd3 {[%emt 0:03:17]} Bc5 {[%emt 0:05:02]} 12. e5 {[%emt 0:05:30]} h6 {[%emt 0:09:30]} 13. e6 {[%emt 0:03:05]} fxe6 {[%emt 0:02:40]} 14. Bg6+ {[%emt 0:00:10]} Kf8 {[%emt 0:01:30]} 15. Be4 {[%emt 0:02:56]} Rb8 {[%emt 0:08:28]} 16. Be3 {[%emt 0:08:42]} Bd6 {[%emt 0:11:54]} 17. Rfe1 {[%emt 0:10:02]} Qf6 {[%emt 0:03:51]} 18. Qa4 {[%emt 0:05:17]} Na5 {[%emt 0:04:31]} 19. Bxb7 {[%emt 0:00:28]} Rxb7 {[%emt 0:00:23]} 20. Bd4 {[%emt 0:03:16]} Qf7 {[%emt 0:03:12]} 21. Re3 {[%emt 0:04:10]} Rb8 {[%emt 0:01:52]} 22. Ne5 {[%emt 0:02:20]} Bxe5 {[%emt 0:01:17]} 23. Bxe5 {[%emt 0:00:04]} Qe8 {[%emt 0:05:37]} 24. Qf4+ {[%emt 0:02:22]} Qf7 {[%emt 0:02:15]} 25. Qe4 {[%emt 0:03:52]} Kg8 {[%emt 0:01:15]} 26. Bxg7 {[%emt 0:00:31]} Rh7 {[%emt 0:00:32]} 27. Be5 {[%emt 0:00:23]} 1-0

[Event "30th Cracovia Festival-A 2019"]
[Site "Krakow"]
[Date "2020.01.03"]
[Round "8.23"]
[White "Grabowski, Pawel"]
[Black "Ramondino, Renzo"]
[Result "1-0"]
[ECO "E92"]
[WhiteElo "2281"]
[BlackElo "2186"]
[Annotator "NA"]
[PlyCount "133"]
[EventDate "2019.12.27"]
[EventCountry "POL"]
[SourceTitle "playchess.com"]
[Source "ChessBase"]
[SourceQuality "1"]
[TimeControl "40/5400+30:1800+30"]

1. d4 {[%emt 0:00:00]} Nf6 {[%emt 0:00:39]} 2. c4 {[%emt 0:00:27]} g6 {[%emt 0:00:06]} 3. Nc3 {[%emt 0:00:25]} Bg7 {[%emt 0:00:53]} 4. e4 {[%emt 0:00:40]} d6 {[%emt 0:00:15]} 5. Be2 {[%emt 0:00:12]} O-O {[%emt 0:00:15]} 6. Nf3 {[%emt 0:00:06]} e5 {[%emt 0:00:11]} 7. dxe5 {[%emt 0:00:31]} dxe5 {[%emt 0:00:11]} 8. Qxd8 {[%emt 0:00:12]} Rxd8 {[%emt 0:00:05]} 9. Bg5 {[%emt 0:00:07]} Re8 {[%emt 0:01:38]} 10. Nd2 {[%emt 0:00:48]} c6 {[%emt 0:02:16]} 11. Nb3 {[%emt 0:01:04]} b6 {[%emt 0:02:27]} 12. f3 {[%emt 0:02:01]} Be6 {[%emt 0:02:55]} 13. O-O-O {[%emt 0:03:13]} Nbd7 {[%emt 0:03:37]} 14. g4 {[%emt 0:02:09]} Bf8 {[%emt 0:02:24]} 15. Be3 {[%emt 0:08:44]} Rec8 {[%emt 0:05:14]} 16. Kb1 {[%emt 0:06:57]} Rab8 {[%emt 0:05:13]} 17. Rd2 {[%emt 0:08:19]} Bb4 {[%emt 0:02:56]} 18. Rc2 Rb7 {[%emt 0:00:30]} 19. Rd1 Kg7 {[%emt 0:00:30]} 20. Nc1 Bc5 {[%emt 0:00:30]} 21. Bg5 h5 {[%emt 0:00:30]} 22. h3 Rh8 {[%emt 0:00:30]} 23. a3 hxg4 {[%emt 0:00:30]} 24. hxg4 Rh3 {[%emt 0:00:30]} 25. Nb3 Bf8 {[%emt 0:00:30]} 26. Nd2 Nh7 {[%emt 0:00:30]} 27. Be3 Bc5 {[%emt 0:00:30]} 28. Bxc5 {[%emt 0:46:31]} Nxc5 {[%emt 0:00:30]} 29. b4 {[%emt 0:00:30]} Nd7 {[%emt 0:00:30]} 30. Rcc1 Ng5 31. Rh1 {[%emt 0:01:00]} Nf6 {[%emt 0:36:42]} 32. Rxh3 {[%emt 0:00:58]} Nxh3 {[%emt 0:00:07]} 33. Rh1 {[%emt 0:02:36]} Nf4 {[%emt 0:00:55]} 34. Bf1 {[%emt 0:00:25]} Rd7 {[%emt 0:01:20]} 35. Kc2 {[%emt 0:00:21]} Ne8 {[%emt 0:02:21]} 36. a4 {[%emt 0:02:30]} Nd6 {[%emt 0:02:31]} 37. Rh2 {[%emt 0:00:19]} Nb7 {[%emt 0:02:25]} 38. Nb3 {[%emt 0:01:09]} a5 {[%emt 0:02:39]} 39. bxa5 {[%emt 0:02:35]} Nxa5 {[%emt 0:00:12]} 40. Nxa5 {[%emt 0:00:44]} bxa5 {[%emt 0:00:00]} 41. Rd2 {[%emt 0:03:43]} Rd4 {[%emt 0:05:46]} 42. Nb1 {[%emt 0:02:36]} c5 {[%emt 0:00:34]} 43. Na3 {[%emt 0:03:34]} Bd7 {[%emt 0:03:54]} 44. Nb5 {[%emt 0:00:34]} Rxd2+ {[%emt 0:00:06]} 45. Kxd2 {[%emt 0:00:06]} Kf6 {[%emt 0:00:14]} 46. Be2 {[%emt 0:01:27]} Kg5 {[%emt 0:06:35]} 47. Bd1 {[%emt 0:00:30]} Ne6 {[%emt 0:02:25]} 48. Ke3 {[%emt 0:01:20]} Nd4 {[%emt 0:00:53]} 49. Nd6 {[%emt 0:00:28]} Be6 {[%emt 0:01:22]} 50. Nb7 {[%emt 0:02:46]} Bxc4 {[%emt 0:00:14]} 51. Nxa5 {[%emt 0:01:17]} Ba6 {[%emt 0:00:36]} 52. Bb3 {[%emt 0:01:15]} f6 {[%emt 0:08:41]} 53. Bc4 {[%emt 0:01:03]} Bc8 {[%emt 0:00:40]} 54. Nb3 {[%emt 0:04:24]} Nxb3 {[%emt 0:02:50]} 55. Bxb3 {[%emt 0:00:01]} Ba6 {[%emt 0:00:21]} 56. Be6 {[%emt 0:02:34]} c4 {[%emt 0:05:05]} 57. Bd7 {[%emt 0:00:35]} c3 {[%emt 0:01:33]} 58. Bb5 {[%emt 0:00:17]} Bb7 {[%emt 0:00:14]} 59. Bd3 {[%emt 0:00:31]} f5 {[%emt 0:12:22]} 60. gxf5 {[%emt 0:00:41]} gxf5 {[%emt 0:00:04]} 61. exf5 {[%emt 0:01:05]} Bc6 {[%emt 0:00:06]} 62. a5 {[%emt 0:00:32]} Bb7 {[%emt 0:00:10]} 63. a6 {[%emt 0:00:49]} c2 {[%emt 0:00:08]} 64. Kd2 {[%emt 0:01:54]} Bxf3 {[%emt 0:00:08]} 65. Bxc2 {[%emt 0:00:34]} Bc6 {[%emt 0:02:50]} 66. Ke3 {[%emt 0:00:18]} e4 {[%emt 0:02:06]} 67. Bxe4 {[%emt 0:00:13]} 1-0

[Event "30th Cracovia Festival-A 2019"]
[Site "Krakow"]
[Date "2020.01.03"]
[Round "8.24"]
[White "Ilandzis, Spyridon"]
[Black "Piotrowski, Przemyslaw"]
[Result "0-1"]
[ECO "B90"]
[WhiteElo "2120"]
[BlackElo "2277"]
[Annotator "NA"]
[PlyCount "78"]
[EventDate "2019.12.27"]
[EventCountry "POL"]
[SourceTitle "playchess.com"]
[Source "ChessBase"]
[SourceQuality "1"]
[TimeControl "40/5400+30:1800+30"]

1. e4 {[%emt 0:00:00]} c5 {[%emt 0:04:47]} 2. Nf3 {[%emt 0:00:00]} d6 {[%emt 0:00:08]} 3. d4 {[%emt 0:00:09]} cxd4 {[%emt 0:00:06]} 4. Nxd4 {[%emt 0:00:08]} Nf6 {[%emt 0:00:04]} 5. Nc3 {[%emt 0:00:15]} a6 {[%emt 0:00:24]} 6. Be3 {[%emt 0:00:47]} e5 {[%emt 0:00:15]} 7. Nb3 {[%emt 0:00:17]} Be7 {[%emt 0:01:13]} 8. f3 {[%emt 0:00:23]} Be6 {[%emt 0:01:03]} 9. Qd2 {[%emt 0:00:45]} Nbd7 {[%emt 0:00:49]} 10. O-O-O {[%emt 0:00:59]} b5 {[%emt 0:00:23]} 11. g4 {[%emt 0:04:37]} Nb6 {[%emt 0:06:51]} 12. Na5 {[%emt 0:22:57]} Qc7 {[%emt 0:14:34]} 13. g5 {[%emt 0:10:09]} Nfd7 {[%emt 0:04:39]} 14. Nd5 {[%emt 0:13:02]} Bxd5 {[%emt 0:03:26]} 15. exd5 {[%emt 0:00:06]} Rc8 {[%emt 0:03:29]} 16. Nc6 {[%emt 0:11:19]} Nxd5 {[%emt 0:02:21]} 17. Nxe7 {[%emt 0:02:23]} Kxe7 {[%emt 0:14:12]} 18. Bf2 {[%emt 0:00:17]} Rhd8 {[%emt 0:03:45]} 19. h4 {[%emt 0:01:20]} Nf8 {[%emt 0:07:12]} 20. Bh3 {[%emt 0:02:33]} Ne6 {[%emt 0:01:01]} 21. h5 {[%emt 0:05:57]} Qc4 {[%emt 0:03:14]} 22. Bf5 {[%emt 0:08:58]} Ndf4 {[%emt 0:10:08]} 23. Kb1 {[%emt 0:03:14]} g6 {[%emt 0:00:24]} 24. hxg6 {[%emt 0:00:24]} hxg6 {[%emt 0:00:05]} 25. Bg4 {[%emt 0:01:17]} Qe2 {[%emt 0:01:32]} 26. Be3 {[%emt 0:02:25]} Qxd2 {[%emt 0:00:41]} 27. Rxd2 {[%emt 0:00:05]} Rc6 {[%emt 0:04:03]} 28. Re1 {[%emt 0:01:29]} Kf8 {[%emt 0:01:04]} 29. Rh2 {[%emt 0:02:44]} Kg7 {[%emt 0:04:17]} 30. Reh1 {[%emt 0:00:12]} Nxg5 {[%emt 0:00:11]} 31. Rg1 {[%emt 0:01:04]} d5 {[%emt 0:02:12]} 32. c3 {[%emt 0:02:02]} f6 {[%emt 0:00:57]} 33. Rd2 {[%emt 0:00:26]} Rc4 {[%emt 0:00:58]} 34. Rgd1 {[%emt 0:02:38]} f5 {[%emt 0:00:34]} 35. b3 {[%emt 0:00:14]} Rxc3 {[%emt 0:00:08]} 36. Bxf4 {[%emt 0:00:04]} exf4 {[%emt 0:00:02]} 37. Rxd5 {[%emt 0:00:07]} Rxd5 {[%emt 0:00:03]} 38. Rxd5 {[%emt 0:00:06]} fxg4 {[%emt 0:01:03]} 39. Rxg5 {[%emt 0:00:04]} g3 {[%emt 0:00:15]} 0-1